[Event "Reykjavik Open 2024"]
[Site "Reykjavik"]
[Date "2024.03.16"]
[Round "2.11"]
[White "Adhiban, B.."]
[Black "Bjornsson, Sigurbjorn"]
[Result "1/2-1/2"]
[ECO "B75"]
[WhiteElo "2541"]
[BlackElo "2305"]
[Annotator "TA"]
[PlyCount "137"]
[EventDate "2024.03.12"]
[EventCountry "ISL"]
[SourceTitle "playchess.com"]
[Source "ChessBase"]
[SourceQuality "1"]
[TimeControl "40/5400+30:1800+30"]

{[%evp 48,137,190,173,217,224,244,252,351,348,362,342,391,381,418,409,405,416,405,335,412,418,382,311,306,310,340,362,368,351,329,0,312,0,283,283,280,266,265,0,261,186,185,139,143,77,67,76,77,8,98,98,170,43,112,102,102,116,88,88,88,0,105,108,106,88,88,0,129,88,169,88,93,88,88,16,14,14,16,0,0,0,0,0,0,0,0,0,0,0,0,0]} 1. e4 {[%emt 0:00:07]} c5 {[%emt 0:00:07]} 2. Nf3 {[%emt 0:00:29]} d6 {[%emt 0:00:05]} 3. d4 {[%emt 0:00:16]} cxd4 {[%emt 0:00:05]} 4. Nxd4 {[%emt 0:00:04]} Nf6 {[%emt 0:00:12]} 5. Nc3 {[%emt 0:00:31]} g6 {[%emt 0:00:12]} 6. Be3 {[%emt 0:00:12]} Bg7 {[%emt 0:00:12]} 7. f3 {[%emt 0:00:10]} a6 {[%emt 0:00:23]} 8. Qd2 {[%emt 0:01:22]} h5 {[%emt 0:00:14]} 9. Be2 {[%emt 0:01:08]} Nc6 {[%emt 0:02:16]} 10. O-O {[%emt 0:00:29]} O-O {[%emt 0:01:59]} 11. a4 {[%emt 0:00:36]} d5 {[%emt 0:01:01]} 12. Nxc6 {[%emt 0:33:24]} bxc6 {[%emt 0:00:06]} 13. e5 {[%emt 0:03:38]} Nd7 {[%emt 0:00:35]} 14. f4 {[%emt 0:00:04]} e6 {[%emt 0:03:37]} 15. a5 {[%emt 0:00:51]} c5 {[%emt 0:06:28]} 16. Na4 {[%emt 0:02:09]} Qc7 {[%emt 0:05:20]} 17. Nxc5 {[%emt 0:08:08]} Nxc5 {[%emt 0:02:58]} 18. Qc3 {[%emt 0:00:04]} f6 {[%emt 0:02:03]} 19. Qxc5 {[%emt 0:03:15]} Rf7 {[%emt 0:09:20]} 20. Qxc7 {[%emt 0:09:05]} Rxc7 {[%emt 0:00:06]} 21. exf6 {[%emt 0:00:08]} Bxf6 {[%emt 0:00:10]} 22. c3 {[%emt 0:00:07]} Bb7 {[%emt 0:06:49]} 23. Bb6 {[%emt 0:05:16]} Re7 {[%emt 0:01:10]} 24. Bd3 {[%emt 0:02:40]} Kg7 {[%emt 0:00:50]} 25. Rfe1 {[%emt 0:04:41]} h4 {[%emt 0:13:50]} 26. Bc5 {[%emt 0:01:55]} Ree8 {[%emt 0:03:59]} 27. Ra4 {[%emt 0:01:02]} Be7 {[%emt 0:02:23]} 28. Bxe7 {[%emt 0:01:42]} Rxe7 {[%emt 0:00:06]} 29. Rb4 {[%emt 0:00:07]} Kf6 {[%emt 0:11:28]} 30. Re5 {[%emt 0:01:22]} Bc6 {[%emt 0:03:57]} 31. Rb6 {[%emt 0:00:34]} Bb5 {[%emt 0:00:50]} 32. Bxb5 {[%emt 0:07:53]} axb5 {[%emt 0:00:02]} 33. Rxb5 {[%emt 0:00:08]} Rea7 {[%emt 0:01:29]} 34. Rb6 {[%emt 0:02:50]} (34. b4 Rc8 35. Rb6 Rxc3 36. Rbxe6+ (36. Rxd5 Rac7 $18) 36... Kf7) 34... Rxa5 {[%emt 0:00:08]} 35. Rbxe6+ {[%emt 0:01:09]} Kf7 {[%emt 0:00:10]} 36. Rb6 {[%emt 0:02:02]} Ra4 {[%emt 0:02:20]} 37. g3 {[%emt 0:01:11]} (37. Rxd5 Rxf4 38. g3 Rg4 39. Rd7+ Kf8 $18) 37... d4 {[%emt 0:01:19]} 38. Rb7+ {[%emt 0:00:49]} (38. gxh4 dxc3 39. bxc3 Rxf4 $16) 38... Kf6 {[%emt 0:00:19]} 39. Rb6+ {[%emt 0:00:52]} (39. gxh4 dxc3 40. Rb6+ (40. bxc3 Rxf4 41. Re3 Rxh4 $11) 40... Kf7 41. bxc3 Rxf4 $16) 39... Kf7 {[%emt 0:00:06]} 40. Rb7+ {[%emt 0:03:34]} (40. gxh4 dxc3 41. bxc3 Rxf4 $14) 40... Kf6 $1 {[%emt 0:01:12]} 41. g4 {[%emt 0:33:35]} (41. gxh4 dxc3 42. Rb6+ (42. bxc3 Rxf4 43. Re3 Rxh4 $11) 42... Kf7 43. bxc3 Rxf4 $16) 41... g5 {[%emt 0:32:34]} 42. Rb6+ {[%emt 0:00:22]} (42. fxg5+ $2 Kxe5 43. cxd4+ Rxd4 44. Re7+ Kd6 $19) 42... Kf7 {[%emt 0:00:07]} 43. Rb7+ {[%emt 0:00:00]} (43. fxg5 dxc3 44. bxc3 Rxg4+ 45. Kf2 Ra2+ 46. Kf3 Rgg2 $16) 43... Kf6 {[%emt 0:00:00]} 44. Rbe7 {[%emt 0:00:00]} (44. fxg5+ $2 {too greedy.} Kxe5 45. g6 d3 $19) 44... R8a6 {[%emt 0:00:00]} 45. fxg5+ {[%emt 0:00:00]} Kg6 {[%emt 0:00:00]} 46. h3 {[%emt 0:00:00]} (46. b3 $142 Ra2 (46... Ra1+ $2 47. Kg2 $18) 47. cxd4) 46... dxc3 $16 {[%emt 0:00:00]} 47. bxc3 {[%emt 0:00:00]} Ra3 {[%emt 0:00:00]} 48. Rc7 {[%emt 0:00:00]} ({White should play} 48. R7e6+ $16 Rxe6 49. Rxe6+ Kxg5 50. Re3) 48... Ra2 {[%emt 0:00:00]} (48... Ra1+ $1 $11 49. Kf2 R6a2+ 50. Re2 Rxe2+ 51. Kxe2 Rh1) 49. Rf5 $16 {[%emt 0:00:00]} Rc2 {[%emt 0:00:00] [#]} (49... Rd2 $16) 50. Rf2 {[%emt 0:00:20]} (50. Rf6+ $1 $18 Rxf6 51. gxf6 Kxf6 52. Rc5) 50... Rc1+ {[%emt 0:00:00]} (50... Ra1+ $14 51. Kg2 (51. Rf1 Raa2 $11) 51... Rxf2+ 52. Kxf2 Ra2+ 53. Kf3 Rh2) 51. Kg2 $16 {[%emt 0:00:16]} Kxg5 {[%emt 0:00:00]} 52. Rc8 {[%emt 0:04:19]} Kg6 {[%emt 0:01:59]} 53. Rg8+ {[%emt 0:01:08]} Kh7 {[%emt 0:00:28]} 54. Rc8 {[%emt 0:00:24]} Kg6 $1 {[%emt 0:00:06]} 55. Re2 {[%emt 0:00:43]} Rd6 {[%emt 0:01:39]} 56. Rg8+ {[%emt 0:00:47]} Kh7 {[%emt 0:01:23]} 57. Rc8 {[%emt 0:00:22]} Kg6 $1 {[%emt 0:00:04]} 58. Rc7 {[%emt 0:00:26]} Ra6 {[%emt 0:01:45]} (58... Rf6 $16 59. Ra2 Rd1) 59. Rd2 {[%emt 0:00:37]} (59. Ree7 $18) 59... Rf6 $16 {[%emt 0:03:26]} 60. c4 {[%emt 0:00:19]} Rc3 {[%emt 0:01:11]} 61. c5 {[%emt 0:03:27]} ({White should try} 61. Ra2 $16) 61... Rg3+ $11 {[%emt 0:03:16]} 62. Kh2 {[%emt 0:00:00]} Rc3 {[%emt 0:00:07]} 63. Rc8 {[%emt 0:00:00]} Rff3 {[%emt 0:05:27]} 64. Rc6+ {[%emt 0:00:00]} Kf7 {[%emt 0:00:32]} 65. Rc7+ {[%emt 0:00:00]} Ke8 {[%emt 0:01:21]} 66. Rc8+ {[%emt 0:00:00]} Ke7 {[%emt 0:00:16]} 67. Rc7+ {[%emt 0:00:00]} Ke8 {[%emt 0:00:06]} 68. Rc8+ {[%emt 0:00:46]} Ke7 {[%emt 0:00:09]} 69. Rc7+ {[%emt 0:00:04]} 1/2-1/2

[Event "Reykjavik Open 2024"]
[Site "Reykjavik"]
[Date "2024.03.16"]
[Round "2.12"]
[White "Mendes Aaron Reeve"]
[Black "Fernandez, Daniel Howard"]
[Result "1/2-1/2"]
[ECO "B40"]
[WhiteElo "2309"]
[BlackElo "2532"]
[Annotator "TA"]
[PlyCount "112"]
[EventDate "2024.03.12"]
[EventCountry "ISL"]
[SourceTitle "playchess.com"]
[Source "ChessBase"]
[SourceQuality "1"]
[TimeControl "40/5400+30:1800+30"]

{[%evp 50,112,100,99,84,86,111,85,92,85,80,85,91,29,29,10,10,13,22,0,8,8,48,0,0,0,0,0,0,0,0,0,0,0,0,0,0,0,0,0,224,214,223,23,1521,1551,5022,175,227,220,29965,307,273,8,8,8,8,0,0,0,0,0,0,0,0]} 1. e4 {[%emt 0:00:06]} c5 {[%emt 0:14:28]} 2. Nf3 {[%emt 0:00:46]} e6 {[%emt 0:02:33]} 3. b3 {[%emt 0:00:59]} Nc6 {[%emt 0:01:01]} 4. Bb2 {[%emt 0:01:28]} a6 {[%emt 0:00:05]} 5. Be2 {[%emt 0:05:05]} d6 {[%emt 0:08:32]} 6. d4 {[%emt 0:02:25]} cxd4 {[%emt 0:00:14]} 7. Nxd4 {[%emt 0:00:07]} Nf6 {[%emt 0:00:05]} 8. Nxc6 {[%emt 0:04:14]} bxc6 {[%emt 0:00:03]} 9. e5 {[%emt 0:00:26]} dxe5 {[%emt 0:00:10]} 10. Qxd8+ {[%emt 0:00:11]} Kxd8 {[%emt 0:00:04]} 11. Bxe5 {[%emt 0:00:12]} Bb4+ {[%emt 0:10:11]} 12. c3 {[%emt 0:02:48]} Ba5 {[%emt 0:00:02]} 13. Bf3 {[%emt 0:07:22]} Bd7 {[%emt 0:01:40]} 14. Nd2 {[%emt 0:03:51]} Bc7 {[%emt 0:00:12]} 15. Nc4 {[%emt 0:00:18]} Rg8 {[%emt 0:04:16]} 16. O-O-O {[%emt 0:07:17]} Nd5 {[%emt 0:00:38]} 17. Bxc7+ {[%emt 0:00:08]} Kxc7 {[%emt 0:00:02]} 18. Ne5 {[%emt 0:00:13]} Be8 {[%emt 0:00:23]} 19. c4 {[%emt 0:00:11]} Ne7 {[%emt 0:00:06]} 20. Rd2 {[%emt 0:04:23]} Rd8 {[%emt 0:09:17]} 21. Rxd8 {[%emt 0:03:27]} Kxd8 {[%emt 0:00:03]} 22. Rd1+ {[%emt 0:00:22]} Kc7 {[%emt 0:00:02]} 23. b4 {[%emt 0:01:20]} Ng6 {[%emt 0:05:19]} 24. Nd3 {[%emt 0:01:45]} Bd7 {[%emt 0:00:03]} 25. Bh5 {[%emt 0:02:05]} f6 {[%emt 0:00:38]} 26. Nc5 {[%emt 0:02:43]} Bc8 {[%emt 0:00:03]} 27. g3 {[%emt 0:05:51]} e5 {[%emt 0:04:09]} 28. a4 {[%emt 0:04:41]} Rf8 {[%emt 0:06:44]} 29. Bxg6 {[%emt 0:01:54]} hxg6 {[%emt 0:00:03]} 30. h4 {[%emt 0:00:19]} Rh8 {[%emt 0:00:12]} 31. Rd2 {[%emt 0:01:45]} ({White should play} 31. Kd2 $16) 31... Rh5 $11 {[%emt 0:00:12]} 32. Kb2 {[%emt 0:03:04]} g5 {[%emt 0:03:04]} 33. hxg5 {[%emt 0:00:10]} Rxg5 {[%emt 0:00:02]} 34. Kc3 {[%emt 0:01:59]} Rf5 {[%emt 0:00:19]} 35. b5 {[%emt 0:03:33]} Kb6 {[%emt 0:07:05]} 36. Nb3 {[%emt 0:09:24]} (36. Nxa6 $14 Bxa6 37. a5+ Kb7 (37... Kxa5 $2 38. Ra2+ Kb6 39. Rxa6+ Kb7 40. Rxc6 $18) 38. bxa6+ Kxa6 39. Kb4) 36... Rf3+ $11 {[%emt 0:06:00]} (36... cxb5 37. cxb5 axb5 38. a5+ Kc6 39. Kb4) (36... axb5 37. a5+ Ka7 38. cxb5 cxb5 39. Kb4) 37. Kb4 {[%emt 0:01:20]} c5+ {[%emt 0:04:47]} 38. Ka3 $1 {[%emt 0:00:15]} axb5 {[%emt 0:00:30]} 39. axb5 {[%emt 0:00:37]} Bf5 {[%emt 0:04:36]} 40. Rd6+ {[%emt 0:07:28]} Kc7 {[%emt 0:00:03]} 41. Rc6+ {[%emt 0:30:28]} Kb8 {[%emt 0:30:03]} 42. Kb2 {[%emt 0:02:12]} (42. Rxc5 $2 Bc2 (42... Rxf2 $2 43. b6 $18) 43. Ka4 Bxb3+ $19 (43... Rxb3 $2 44. Ka5 $19)) 42... Rxf2+ {[%emt 0:00:04]} 43. Ka3 {[%emt 0:00:09]} Rf3 {[%emt 0:02:16]} 44. Kb2 {[%emt 0:00:11]} e4 $2 {[%emt 0:05:14]} (44... Rf2+ $11 45. Ka3 Rf3) 45. Nxc5 $18 {[%emt 0:00:32]} e3 {[%emt 0:00:27]} 46. Na6+ $1 {[%emt 0:01:51]} Kb7 $2 {[%emt 0:02:28][%mdl 8192]} (46... Ka7 $11) 47. c5 $18 {[%emt 0:00:54]} Bd3 {[%emt 0:02:52]} 48. Rc7+ $2 {[%emt 0:00:33]} (48. Rb6+ Ka7 49. Nb4 Rf2+ 50. Ka3) 48... Ka8 $18 {[%emt 0:00:02]} 49. Re7 {[%emt 0:09:13]} (49. Rxg7 Rf5 50. Rg8+ Ka7 51. Rg7+ Ka8 52. Nc7+ Kb8 53. Na6+ Ka8 $11) 49... e2 $2 {[%emt 0:00:34]} (49... Rf5 $18) 50. c6 $2 {[%emt 0:00:40]} (50. Rxg7 e1=Q (50... e1=R $2 51. Rg8+ Kb7 52. Rg7+ Kc8 53. Rg8+ Kd7 54. Nb8+ Ke7 55. Nc6+ Kf7 56. Nd4 $19) 51. Nc7+ Kb8 52. Na6+ Kc8 53. Rg8+ Kd7 (53... Kb7 54. Rg7+ Kc8 55. Rg8+ Kd7 56. Rg7+ Kd8 57. Rg8+ Ke7 58. Re8+ Kxe8 59. Nc7+ Kf7 60. Nd5 Bh7 61. Ne3 Qxe3 62. g4 Qa3#) 54. Rg7+ Kd8 55. Rg8+ Ke7) (50. b6 {mates} Bxa6 51. c6 e1=R 52. Rxe1 Rf2+ 53. Kb3 Re2 54. Ra1 Re3+ 55. Kb4) 50... Rf1 $18 {[%emt 0:02:31] [#]} 51. b6 $2 {[%emt 0:00:44]} (51. Rxg7 $2 {is the wrong capture.} Rb1+ (51... e1=R $2 {perishes.} 52. Rb7 $18) (51... e1=Q 52. Nc7+ Kb8 53. Na6+ Ka8 54. Nc7+ Kb8 55. Na6+ Ka8 $11) 52. Ka2 Ra1+ (52... e1=R 53. Nc7+ Kb8 54. Na6+ Ka8 55. Nc7+ Kb8 56. Na6+ Ka8 $11) 53. Kxa1 e1=Q+ (53... e1=R+ $2 54. Ka2 $18) 54. Kb2 Qe5+ (54... Bxb5 55. Nc7+ Kb8 56. Nxb5 $17) (54... Qd2+ $2 55. Kb3 $19) 55. Ka2 Bc4+ (55... Bxb5 56. Nc7+ Kb8 57. Nxb5 $17) 56. Kb1 Qxb5+ (56... Bxb5 $2 57. Nc7+ Kb8 58. Nxb5 $19) 57. Kc2 Qb3+ (57... Qxa6 $2 58. Re7 $19) 58. Kd2 Qd3+ (58... Bxa6 $2 59. Kc1 $19) 59. Kc1 Qe3+ (59... Bxa6 $2 60. Rd7 $19) 60. Kc2 Bd3+ (60... Bxa6 $2 61. Rd7 $19) 61. Kb3 Bxa6+ $19) (51. Nc7+ $1 $18 Kb8 52. Ne8 (52. Rxg7 $2 Rb1+ 53. Ka3 Ra1+ 54. Kb2 e1=Q $19) (52. Na6+ Ka8 $18)) 51... Rb1+ $11 {[%emt 0:00:11]} 52. Kc3 {[%emt 0:00:07]} Rxb6 {[%emt 0:00:10]} 53. Nc7+ {[%emt 0:00:17]} Kb8 {[%emt 0:00:03]} 54. Kxd3 {[%emt 0:00:18]} e1=Q {[%emt 0:00:11]} 55. Rxe1 {[%emt 0:00:30]} Kxc7 {[%emt 0:00:03]} 56. Re7+ {[%emt 0:00:25]} Kxc6 {[%emt 0:00:03]} 1/2-1/2

[Event "Reykjavik Open 2024"]
[Site "Reykjavik"]
[Date "2024.03.16"]
[Round "2.13"]
[White "Klimkowski, Jan"]
[Black "Hopman, Pieter"]
[Result "0-1"]
[ECO "B07"]
[WhiteElo "2532"]
[BlackElo "2297"]
[Annotator "TA"]
[PlyCount "76"]
[EventDate "2024.03.12"]
[EventCountry "ISL"]
[SourceTitle "playchess.com"]
[Source "ChessBase"]
[SourceQuality "1"]
[TimeControl "40/5400+30:1800+30"]

{[%evp 9,76,34,36,30,34,16,48,-26,0,-73,-94,-96,-87,-152,-121,-181,-174,-173,-179,-293,-286,-427,-428,-425,-357,-350,-333,-297,-218,-204,-211,-203,-205,-200,-215,-210,-168,-330,-325,-308,-260,-475,-475,-464,-473,-581,-439,-585,-550,-594,-577,-745,-725,-936,-916,-1009,-661,-825,-815,-1320,-1311,-1249,-1253,-1073,-825,-6450,-6566,-29988,-29989]} 1. e4 {[%emt 0:00:04]} d6 {[%emt 0:00:45]} 2. d4 {[%emt 0:00:15]} Nf6 {[%emt 0:00:05]} 3. Nc3 {[%emt 0:00:04]} e5 {[%emt 0:00:03]} 4. Nge2 {[%emt 0:00:13]} c6 {[%emt 0:00:12]} 5. h3 {[%emt 0:00:37]} b5 {[%emt 0:00:24]} 6. a3 {[%emt 0:00:33]} h5 {[%emt 0:01:14]} 7. Ng1 {[%emt 0:01:12]} Qa5 {[%emt 0:07:06]} 8. Qd2 {[%emt 0:15:41]} ({White should try} 8. Nf3 $14) 8... b4 $11 {[%emt 0:10:04]} 9. Nce2 {[%emt 0:00:35]} (9. Na2 $11 {keeps the balance.}) 9... c5 $17 {[%emt 0:03:55]} 10. dxe5 {[%emt 0:06:03]} dxe5 {[%emt 0:00:16][%cal Ob8c6]} (10... Nxe4 11. Qd5 bxa3+ 12. c3 $14) 11. c3 {[%emt 0:07:39]} (11. Nf3 $142 Nc6 (11... Nxe4 $2 12. Qd5 $18) 12. Qd1) 11... Bb7 {[%emt 0:02:24] Black is more active.} (11... Nxe4 $2 {too greedy.} 12. Qd5 bxc3 13. bxc3 (13. Qxa8 {gets mated.} cxb2+ 14. Kd1 Nxf2+ 15. Kc2 Bf5+) 13... Nxc3 14. Qxe5+ (14. Qxa8 $2 Ne4+ $19) 14... Be7 15. Qxc3 $18 (15. Nxc3 O-O $16)) 12. f3 {[%emt 0:08:06] [#]} (12. Nf3 $17 Nxe4 13. Qc2) 12... h4 $1 $19 {[%emt 0:03:12]} 13. g4 {[%emt 0:05:40]} Nc6 {[%emt 0:03:30]} 14. Qc2 {[%emt 0:12:03]} (14. Qd1 $142) 14... c4 {[%emt 0:07:43]} 15. Be3 {[%emt 0:00:17]} (15. cxb4 $142 Nxb4 16. axb4 Bxb4+ (16... Qxa1 $2 17. Nc3 $19) 17. Nc3 Qxa1 18. g5) 15... b3 {[%emt 0:01:44]} ({Less strong is} 15... bxa3 16. Nc1 $19) 16. Qc1 {[%emt 0:00:05]} O-O-O {[%emt 0:01:12]} 17. Kf2 {[%emt 0:02:56]} Rd3 {[%emt 0:04:56][%cal Od3e3] ...Rxe3! is the strong threat.} 18. Kg2 {[%emt 0:03:22]} Nd8 {[%emt 0:00:34] White must now prevent ...Qc7.} 19. Nd4 {[%emt 0:01:51]} exd4 {[%emt 0:03:03]} 20. cxd4 {[%emt 0:01:15] [#]} Rxe3 $1 {[%emt 0:01:27]} 21. Qxe3 {[%emt 0:00:02][%cal Oa1c1] Strongly threatening Rc1!} Qc7 {[%emt 0:06:24]} 22. Ne2 {[%emt 0:01:13] Prevents Qg3+} Ne6 {[%emt 0:02:47]} 23. Rc1 $2 {[%emt 0:04:19]} (23. Rg1 {was necessary.}) 23... g6 {[%emt 0:03:36]} 24. g5 {[%emt 0:05:48] Wards off Bh6} Rh5 {[%emt 0:06:49]} 25. Kf2 $2 {[%emt 0:07:38]} (25. gxf6 {was the only defense.} Bh6 26. Qc3 Bxc1 27. Qxc1 Nxd4 28. Qf4) 25... Rxg5 {[%emt 0:01:57] Hoping for ...Bh6.} 26. Ke1 {[%emt 0:00:06]} Bh6 {[%emt 0:03:16]} 27. Qc3 {[%emt 0:06:46]} Rh5 {[%emt 0:09:20]} 28. Rd1 {[%emt 0:00:09]} Nd7 {[%emt 0:00:44]} 29. d5 {[%emt 0:03:33]} Bg7 {[%emt 0:04:25] Dodges dxe6} 30. Qe3 {[%emt 0:00:06]} Nec5 {[%emt 0:00:21]} 31. d6 {[%emt 0:03:23]} Qa5+ {[%emt 0:00:51]} 32. Nc3 {[%emt 0:01:29]} Ne5 {[%emt 0:02:40][%cal Oe5f3] Threatens to win with ...Nxf3+!} 33. d7+ {[%emt 0:01:13]} Kd8 {[%emt 0:01:51]} 34. Rd2 {[%emt 0:01:31]} Ncd3+ {[%emt 0:01:17]} 35. Bxd3 {[%emt 0:00:21]} Nxd3+ {[%emt 0:00:15]} 36. Ke2 {[%emt 0:00:33]} Qb6 {[%emt 0:05:13]} 37. Rxd3 {[%emt 0:01:21]} cxd3+ {[%emt 0:00:07]} 38. Qxd3 {[%emt 0:00:04]} Ba6 {[%emt 0:00:08] White did not feel at home in the position after the opening.   Weighted Error Value: White=1.14/Black=0.49.  Mistake:       	White=8     	---        Inaccurate:     	White=1     	Black=1      OK:         	White=4     	Black=11     Best:        	White=2     	Black=1} 0-1

[Event "Reykjavik Open 2024"]
[Site "Reykjavik"]
[Date "2024.03.16"]
[Round "2.14"]
[White "Xu, Yuanyuan"]
[Black "Yilmazyerli, Mert"]
[Result "1/2-1/2"]
[ECO "E34"]
[WhiteElo "2288"]
[BlackElo "2526"]
[Annotator "TA"]
[PlyCount "32"]
[EventDate "2024.03.12"]
[EventCountry "ISL"]
[SourceTitle "playchess.com"]
[Source "ChessBase"]
[SourceQuality "1"]
[TimeControl "40/5400+30:1800+30"]

{[%evp 9,32,-20,-9,-14,-14,-4,-13,-34,-30,-29,-31,-34,-46,-47,0,0,0,0,0,0,0,0,4,6,0]} 1. d4 {[%emt 0:00:03]} Nf6 {[%emt 0:03:16]} 2. c4 {[%emt 0:00:03]} e6 {[%emt 0:00:04]} 3. Nc3 {[%emt 0:00:25]} Bb4 {[%emt 0:00:16]} 4. Qc2 {[%emt 0:00:37]} d5 {[%emt 0:00:06]} 5. Bg5 {[%emt 0:01:11]} dxc4 {[%emt 0:05:02]} 6. e3 {[%emt 0:18:03]} b5 {[%emt 0:06:43]} 7. a4 {[%emt 0:00:07]} c6 {[%emt 0:00:48]} 8. Be2 {[%emt 0:03:04]} Bb7 {[%emt 0:04:48]} 9. Bf3 {[%emt 0:02:53]} a6 {[%emt 0:03:21]} 10. Nge2 {[%emt 0:01:42]} Nbd7 {[%emt 0:00:46]} 11. O-O {[%emt 0:00:35]} O-O {[%emt 0:02:20]} (11... Qb6 $15) 12. axb5 $11 {[%emt 0:03:23] Die Stellung ist ausgeglichen.} axb5 {[%emt 0:00:06]} 13. Nxb5 {[%emt 0:00:56]} cxb5 {[%emt 0:02:30]} 14. Bxb7 {[%emt 0:00:28]} Rxa1 {[%emt 0:01:17]} 15. Rxa1 {[%emt 0:00:30]} Qc7 {[%emt 0:03:07]} 16. Bf3 {[%emt 0:00:45]} Bd6 {[%emt 0:02:17] Gewichteter Fehlerwert: Weiß=0.03 (makellos) /Schwarz=0.05 (makellos) .  Fehler:       	---       	Schwarz=1     OK:         	Weiß=6     	Schwarz=7} 1/2-1/2

[Event "Reykjavik Open 2024"]
[Site "Reykjavik"]
[Date "2024.03.16"]
[Round "2.15"]
[White "Soderstrom, Adrian"]
[Black "Gokerkan, Cem Kaan"]
[Result "1/2-1/2"]
[ECO "B45"]
[WhiteElo "2288"]
[BlackElo "2523"]
[Annotator "TA"]
[PlyCount "41"]
[EventDate "2024.03.12"]
[EventCountry "ISL"]
[SourceTitle "playchess.com"]
[Source "ChessBase"]
[SourceQuality "1"]
[TimeControl "40/5400+30:1800+30"]

{[%evp 15,41,25,27,0,30,-29,-10,-10,-8,-6,-16,-10,-12,-7,0,-6,0,-9,-22,-7,-9,-17,-9,-9,0,0,0,-102]} 1. e4 {[%emt 0:02:41]} c5 {[%emt 0:02:49]} 2. Nf3 {[%emt 0:00:00]} Nc6 {[%emt 0:00:09]} 3. d4 {[%emt 0:00:00]} cxd4 {[%emt 0:00:05]} 4. Nxd4 {[%emt 0:00:00]} Nf6 {[%emt 0:00:04][%cal Bg8f6,Bf6d5,Bd5b4,Bb4c6][%mdl 32]} 5. Nc3 {[%emt 0:00:00]} e6 {[%emt 0:00:06]} 6. Nxc6 {[%emt 0:00:00]} bxc6 {[%emt 0:00:05]} 7. e5 {[%emt 0:00:00]} Nd5 {[%emt 0:00:04]} 8. Ne4 {[%emt 0:00:00]} Bb7 {[%emt 0:00:05]} 9. c4 {[%emt 0:10:01]} Nb4 {[%emt 0:00:21]} 10. Be2 {[%emt 0:19:49]} (10. c5 $142 Qb8 11. f4) 10... c5 {[%emt 0:05:02]} 11. Bf3 {[%emt 0:02:30] The position is equal.} Qb8 {[%emt 0:00:11]} 12. Bf4 {[%emt 0:05:50]} Nc6 {[%emt 0:00:04]} 13. O-O {[%emt 0:01:55]} Nxe5 {[%emt 0:00:14]} 14. Re1 {[%emt 0:07:50]} Be7 {[%emt 0:03:38]} 15. Bh5 {[%emt 0:11:16][%cal Oe4c5]} O-O {[%emt 0:19:47]} 16. Nxc5 {[%emt 0:03:42]} Bxc5 {[%emt 0:00:21]} 17. Bxe5 {[%emt 0:00:13]} d6 {[%emt 0:00:17]} 18. Bc3 {[%emt 0:00:48]} a5 {[%emt 0:03:06]} 19. Qd2 {[%emt 0:03:25]} Qc7 {[%emt 0:02:58]} (19... Qd8 $11) 20. Bxg7 $17 {[%emt 0:00:45]} Kxg7 {[%emt 0:03:58]} 21. Qg5+ {[%emt 0:00:07] Weighted Error Value: White=0.09 (flawless) /Black=0.03 (flawless) .  Mistake:       	White=1     	Black=1      OK:         	White=6     	Black=8      Best:        	White=1     	---} 1/2-1/2

[Event "Reykjavik Open 2024"]
[Site "Reykjavik"]
[Date "2024.03.16"]
[Round "2.16"]
[White "Prraneeth Vuppala"]
[Black "Unzicker, Ferdinand"]
[Result "1/2-1/2"]
[ECO "B67"]
[WhiteElo "2506"]
[BlackElo "2284"]
[Annotator "TA"]
[PlyCount "50"]
[EventDate "2024.03.12"]
[EventCountry "ISL"]
[SourceTitle "playchess.com"]
[Source "ChessBase"]
[SourceQuality "1"]
[TimeControl "40/5400+30:1800+30"]

{[%evp 21,50,14,31,10,78,56,34,33,29,35,47,22,14,0,13,0,9,-18,-16,-64,-24,-53,-56,-55,-57,-67,-53,-54,-59,-80,-36]} 1. e4 {[%emt 0:00:04]} c5 {[%emt 0:03:49]} 2. Nf3 {[%emt 0:07:54]} d6 {[%emt 0:00:09]} 3. d4 {[%emt 0:00:41]} cxd4 {[%emt 0:00:06]} 4. Nxd4 {[%emt 0:00:07]} Nf6 {[%emt 0:00:05]} 5. Nc3 {[%emt 0:00:06]} Nc6 {[%emt 0:00:09]} 6. Bg5 {[%emt 0:00:25]} e6 {[%emt 0:00:13]} 7. Qd2 {[%emt 0:01:14]} a6 {[%emt 0:00:22]} 8. O-O-O {[%emt 0:01:08]} Bd7 {[%emt 0:00:15]} 9. Kb1 {[%emt 0:00:51]} b5 {[%emt 0:02:34]} 10. Nxc6 {[%emt 0:02:26]} Bxc6 {[%emt 0:00:03]} 11. f3 {[%emt 0:00:12]} Be7 {[%emt 0:07:46]} 12. Bd3 {[%emt 0:03:56]} d5 {[%emt 0:18:25]} (12... Qc7 $11 {remains equal.}) 13. Bxf6 {[%emt 0:16:59]} Bxf6 {[%emt 0:00:21]} 14. exd5 {[%emt 0:00:12] White is slightly better.} Bxd5 {[%emt 0:02:40]} 15. Nxd5 {[%emt 0:00:30]} Qxd5 {[%emt 0:02:08]} 16. Qb4 {[%emt 0:02:35] [#] Be4 would now be deadly.} Rc8 {[%emt 0:20:14]} 17. Qa3 {[%emt 0:26:29]} Qe5 {[%emt 0:13:15]} 18. Rhe1 {[%emt 0:02:34]} Qc7 {[%emt 0:09:53]} (18... Qxh2 $2 {loses.} 19. Qxa6 O-O 20. Rh1 $18) 19. Be4 {[%emt 0:10:17]} (19. g3 {simplifies} Qc5 20. Qxc5 Rxc5 21. c3) 19... a5 {[%emt 0:07:31][%cal Ob5b4]} 20. Qd3 {[%emt 0:07:57]} (20. f4 $11 {deserves consideration.}) 20... b4 {[%emt 0:02:21]} 21. f4 {[%emt 0:07:15]} (21. Bxh7 $2 Kf8 22. Be4 Rxh2 $17 (22... Qxh2 23. g4 $15)) 21... Ke7 {[%emt 0:01:30]} 22. g4 {[%emt 0:03:41] [#] g5 is the strong threat.} Rhd8 {[%emt 0:00:11]} 23. Qe3 {[%emt 0:01:59] Strongly threatening g5.} Rxd1+ {[%emt 0:01:04]} 24. Rxd1 {[%emt 0:00:01][%cal Og4g5] Black must now prevent g5!} g6 {[%emt 0:00:07]} 25. Bd3 {[%emt 0:01:55]} Qc5 {[%emt 0:00:22] Weighted Error Value: White=0.18 (very precise) /Black=0.17 (very precise) .  Mistake:       	White=1     	Black=1      Inaccurate:     	White=2     	Black=2      OK:         	White=2     	Black=4} 1/2-1/2